Workbook

Sheet Dashboard
C2: A+ Opportunities | J2: A Purchasing Profiles | R2: A Purchasing Profiles - Previous
A3: Region Manager | C3: Number of A+ Accounts | D3: Change vs. 10/16/15 | E3: Total A+ Opportunities | F3: Change vs. WAG | G3: Region 2H Growth Target | H3: 3X Growth | J3: Unique Purchasing Companies | K3: Change vs. 10/16/15 | L3: Annual Volume | M3: Change vs. 10/16/15 | N3: Region 2H Base (from Zone Budgets) | O3: 50% Base Business Target (from 2H Base) | P3: % to Target | R3: Unique Purchasing Companies | S3: Change vs. WAG | T3: Annual Volume | U3: Region 2H Base (from Zone Budgets) | V3: 50% Base Business Target (from 2H Base) | W3: % to Target
A4: Bullock | H4: =G4*3 -> 0 | P4: =L4/O4 ->  | R4: 17 | S4: 0 | T4: 17656 | U4: 397682 | V4: 198841 | W4: =T4/V4 -> 0.0887945645
A5: Giordano | H5: =G5*3 -> 0 | P5: =L5/O5 ->  | R5: 5 | S5: 1 | T5: 17736 | U5: 281301 | V5: 140650.5 | W5: =T5/V5 -> 0.1260998006
A6: Leary | H6: =G6*3 -> 0 | P6: =L6/O6 ->  | R6: 3 | S6: 0 | T6: 1428 | U6: 264425 | V6: 132212.5 | W6: =T6/V6 -> 0.01080079418
A7: Shuman | H7: =G7*3 -> 0 | P7: =L7/O7 ->  | R7: 0 | S7: 0 | T7: 0 | U7: 32729 | V7: 16364.5 | W7: 0
A9: Western Zone | C9: =SUM(C4:C8) -> 0 | D9: =SUM(D4:D8) -> 0 | E9: =SUM(E4:E8) -> 0 | F9: =SUM(F4:F8) -> 0 | G9: =SUM(G4:G8) -> 0 | H9: =SUM(H4:H8) -> 0 | J9: =SUM(J4:J7) -> 0 | K9: =SUM(K4:K7) -> 0 | L9: =SUM(L4:L7) -> 0 | N9: =SUM(N4:N7) -> 0 | O9: =SUM(O4:O7) -> 0 | P9: =L9/O9 ->  | R9: =SUM(R4:R7) -> 25 | S9: =SUM(S4:S7) -> 1 | T9: =SUM(T4:T7) -> 36820 | U9: =SUM(U4:U7) -> 976137 | V9: =SUM(V4:V7) -> 488068.5 | W9: =T9/V9 -> 0.07544023021
A11: Bergman | H11: =G11*3 -> 0 | P11: =L11/O11 ->  | R11: 2 | S11: 0 | T11: 3840 | U11: 306793 | V11: 153396.5 | W11: =T11/V11 -> 0.02503316569
A12: Otting | H12: =G12*3 -> 0 | R12: 0 | S12: 0 | T12: 0 | U12: 144125 | V12: 72062.5 | W12: 0
A13: Rodgers | H13: =G13*3 -> 0 | R13: 0 | S13: 0 | T13: 0 | U13: 159560 | V13: 79780 | W13: 0
A14: Romano | H14: =G14*3 -> 0 | R14: 17 | S14: 0 | T14: 135410 | U14: 257861 | V14: 128930.5 | W14: 1.050255758
A15: Warren | H15: =G15*3 -> 0 | P15: =L15/O15 ->  | R15: 2 | S15: 2 | T15: 24000 | U15: 18401 | V15: 9200.5 | W15: =T15/V15 -> 2.608553883
A17: Eastern Zone | C17: =SUM(C11:C16) -> 0 | D17: =SUM(D11:D16) -> 0 | E17: =SUM(E11:E16) -> 0 | F17: =SUM(F11:F16) -> 0 | G17: =SUM(G11:G16) -> 0 | H17: =SUM(H11:H16) -> 0 | J17: =SUM(J11:J16) -> 0 | K17: =SUM(K11:K16) -> 0 | L17: =SUM(L11:L16) -> 0 | N17: =SUM(N11:N16) -> 0 | O17: =SUM(O11:O16) -> 0 | P17: =L17/O17 ->  | R17: =SUM(R11:R16) -> 21 | S17: =SUM(S11:S16) -> 2 | T17: =SUM(T11:T16) -> 163250 | U17: =SUM(U11:U16) -> 886740 | V17: =SUM(V11:V16) -> 443370 | W17: =T17/V17 -> 0.3682026299
A19: Grand Total | C19: =C17+C9 -> 0 | D19: =D9+D17 -> 0 | E19: =E17+E9 -> 0 | F19: =F17+F9 -> 0 | G19: =G17+G9 -> 0 | H19: =H17+H9 -> 0 | J19: =J9+J17 -> 0 | K19: =K9+K17 -> 0 | L19: =L9+L17 -> 0 | N19: =N9+N17 -> 0 | O19: =O9+O17 -> 0 | P19: =L19/O19 ->  | R19: 46 | S19: 3 | T19: 200070 | U19: 1862877 | V19: 931438.5 | W19: =T19/V19 -> 0.2147967901
